bitfinex/quotes_BTCUSD_20241022
["timestamp","ask_amount","ask_price","bid_price","bid_amount"]
[1729604516566,0.001652,66873.0,66870.0,0.29850215]
[1729604516785,0.001652,66873.0,66870.0,0.29850115]
[1729604517027,0.149544,66870.0,66867.0,0.10224314]
[1729604517270,0.001652,66873.0,66867.0,0.15120229]
[1729604517271,0.149547,66869.0,66867.0,0.15120229]
[1729604517492,0.149544,66870.0,66867.0,0.30075229]
[1729604517735,0.002652,66873.0,66870.0,0.002]
[1729604517969,0.002652,66873.0,66872.0,0.149539]
[1729604518212,0.001652,66873.0,66872.0,0.32133553]
[1729604518953,0.001652,66873.0,66872.0,0.88165338]
[1729604519255,0.001652,66873.0,66872.0,0.66789468]
[1729604519478,0.001652,66873.0,66872.0,0.84879468]
[1729604519720,0.001652,66873.0,66872.0,0.83379468]
[1729604519951,0.001652,66873.0,66872.0,0.29849815]
[1729604520175,0.001652,66873.0,66872.0,0.57029468]
[1729604521363,0.001652,66873.0,66872.0,0.1]
[1729604521582,0.151189,66873.0,66871.0,0.1]
[1729604521796,0.149539,66872.0,66868.0,0.53352131]
[1729604522012,0.002652,66873.0,66869.0,0.14895915]
[1729604522446,0.149539,66872.0,66869.0,0.14895915]
[1729604522661,0.001652,66873.0,66869.0,0.14895915]
[1729604522868,0.299078,66872.0,66868.0,0.38397431]
[1729604523109,0.002652,66873.0,66868.0,0.38397431]
[1729604523335,0.149546,66869.0,66868.0,0.38397431]
[1729604524259,0.149541,66872.0,66868.0,0.53352031]
[1729604524462,0.001652,66873.0,66868.0,0.53352031]
[1729604524463,0.001652,66873.0,66868.0,0.38397431]
[1729604524921,0.001652,66873.0,66872.0,0.149539]
[1729604526089,0.001652,66873.0,66872.0,0.29849815]
[1729604526302,0.002652,66873.0,66872.0,0.30049815]
[1729604526728,0.152189,66873.0,66872.0,0.002]
[1729604527225,0.299086,66871.0,66868.0,0.38397431]
[1729604527439,0.149542,66871.0,66868.0,0.38397431]
[1729604527649,0.149542,66871.0,66868.0,0.53352131]
[1729604528086,0.149542,66871.0,66868.0,0.38397431]
[1729604528308,0.149546,66869.0,66868.0,0.38397431]
[1729604528977,0.001652,66873.0,66869.0,0.149545]
[1729604529187,0.001652,66873.0,66872.0,0.149539]
[1729604529413,0.001652,66873.0,66872.0,0.29849815]
[1729604529639,0.001652,66873.0,66872.0,0.37349815]
[1729604529864,0.002652,66873.0,66872.0,0.37549815]
[1729604530294,0.002652,66873.0,66872.0,0.47549815]
[1729604530505,0.001652,66873.0,66872.0,0.92923583]
[1729604531131,0.001652,66873.0,66872.0,0.93123583]
[1729604531132,0.002652,66873.0,66872.0,0.93123583]
[1729604531773,0.002652,66873.0,66872.0,0.67039815]
[1729604532735,0.002652,66873.0,66872.0,0.67539815]
[1729604532954,9.0,66883.0,66882.0,0.51535468]
[1729604533175,9.0,66883.0,66882.0,1.40441638]
[1729604533391,8.41234725,66883.0,66882.0,1.35783001]
[1729604533611,8.13424725,66883.0,66882.0,1.35783001]
[1729604534576,7.06003255,66883.0,66882.0,1.32358871]
[1729604534765,6.91051755,66883.0,66882.0,1.18767184]
[1729604534983,6.88712825,66883.0,66882.0,1.14631507]
[1729604535198,6.87165872,66883.0,66882.0,1.18658062]
[1729604535421,6.82808022,66883.0,66882.0,1.18658062]
[1729604535636,6.15819849,66883.0,66882.0,7.00104918]
[1729604535877,6.05146129,66883.0,66882.0,8.15176128]
[1729604536100,5.99972059,66883.0,66882.0,8.15176128]
[1729604536337,5.99972059,66883.0,66882.0,6.91872507]
[1729604536338,5.99872059,66883.0,66882.0,6.91872507]
[1729604536564,5.99872059,66883.0,66882.0,2.03031507]
[1729604536781,5.85020559,66883.0,66882.0,1.13747739]
[1729604537008,5.85020559,66883.0,66882.0,1.27647739]
[1729604537233,5.85020559,66883.0,66882.0,1.20422213]
[1729604537448,5.85020559,66883.0,66882.0,1.13747739]
[1729604537675,5.76049659,66883.0,66882.0,1.13747739]
[1729604537885,5.69969059,66883.0,66882.0,1.13347739]
[1729604538100,5.69969059,66883.0,66882.0,1.12347739]
[1729604538313,5.69969059,66883.0,66882.0,1.13747739]
[1729604538314,5.70069059,66883.0,66882.0,1.13747739]
[1729604538574,5.70069059,66883.0,66882.0,0.99099233]
[1729604538800,5.55117559,66883.0,66882.0,0.99099233]
[1729604539712,5.40166059,66883.0,66882.0,1.17857283]
[1729604539917,5.35977768,66883.0,66882.0,6.47857283]
[1729604540132,5.35977768,66883.0,66882.0,6.86256258]
[1729604540339,5.34330374,66883.0,66882.0,1.75657283]
[1729604540554,5.34330374,66883.0,66882.0,1.75080179]
[1729604540804,5.19478874,66883.0,66882.0,1.39221606]
[1729604541036,5.19478874,66883.0,66882.0,1.34321606]
[1729604541267,4.40423353,66883.0,66882.0,1.39405374]
[1729604541492,4.40423353,66883.0,66882.0,1.34783001]
[1729604541703,4.37433053,66883.0,66882.0,1.34783001]
[1729604541919,4.25571853,66883.0,66882.0,1.35083001]
[1729604542130,4.25571853,66883.0,66882.0,1.39698624]
[1729604542389,4.25571853,66883.0,66882.0,2.50698624]
[1729604542594,4.25571853,66883.0,66882.0,2.59267969]
[1729604542822,4.09043422,66883.0,66882.0,2.81643839]
[1729604543047,4.09043422,66883.0,66882.0,4.03064314]
[1729604543268,4.09043422,66883.0,66882.0,3.96413811]
[1729604543497,4.04471551,66883.0,66882.0,4.03063274]
[1729604543715,3.87120051,66883.0,66882.0,4.03871072]
[1729604543950,3.7226574,66883.0,66882.0,4.25135536]
[1729604544190,3.7226574,66883.0,66882.0,3.91824743]
[1729604544191,3.56616837,66883.0,66882.0,3.91824743]
[1729604544448,3.54890798,66883.0,66882.0,8.25156709]
[1729604544694,3.45919898,66883.0,66882.0,8.07481975]
[1729604544994,3.39839298,66883.0,66882.0,8.13822913]
[1729604545209,3.39839298,66883.0,66882.0,8.16041454]
[1729604545422,3.18982995,66883.0,66882.0,8.07481975]
[1729604545637,3.02538844,66883.0,66882.0,8.07481975]
[1729604545854,2.96558244,66883.0,66882.0,8.07481975]
[1729604546075,2.96558244,66883.0,66882.0,8.03346298]
[1729604546316,2.96558244,66883.0,66882.0,8.07768343]
[1729604546533,2.96558244,66883.0,66882.0,8.03986782]
[1729604546760,2.80347938,66883.0,66882.0,6.87485227]
[1729604547193,2.80247938,66883.0,66882.0,6.87185227]
[1729604547415,2.80247938,66883.0,66882.0,6.87267727]
[1729604547633,2.80247938,66883.0,66882.0,5.20926727]
[1729604547634,2.71542038,66883.0,66882.0,5.20926727]
[1729604547855,2.65561438,66883.0,66882.0,2.54311104]
[1729604548309,2.63250021,66883.0,66882.0,2.53011104]
[1729604548706,2.63250021,66883.0,66882.0,2.46003104]
[1729604548707,2.51288821,66883.0,66882.0,2.46003104]
[1729604548895,2.48298521,66883.0,66882.0,2.46003104]
[1729604549092,2.48398521,66883.0,66882.0,2.49603104]
[1729604549828,2.39427621,66883.0,66882.0,2.59603104]
[1729604550094,2.33447021,66883.0,66882.0,2.59603104]
[1729604550253,2.33447021,66883.0,66882.0,2.37303104]
[1729604550659,2.27466421,66883.0,66882.0,2.37303104]
[1729604550861,2.27466421,66883.0,66882.0,2.36003104]
[1729604550862,2.18495521,66883.0,66882.0,2.36003104]
[1729604551068,2.18395521,66883.0,66882.0,2.36003104]
[1729604551321,2.18495521,66883.0,66882.0,2.37303104]
[1729604551735,2.06534321,66883.0,66882.0,2.37303104]
[1729604551940,2.03444021,66883.0,66882.0,1.85503104]
[1729604552256,2.03444021,66883.0,66882.0,1.18981104]
[1729604552476,2.03544021,66883.0,66882.0,1.20281104]
[1729604553324,2.03444021,66883.0,66882.0,1.18981104]
[1729604553560,2.03444021,66883.0,66882.0,1.31281104]
[1729604553796,1.91482821,66883.0,66882.0,1.31281104]
[1729604554018,1.88492521,66883.0,66882.0,6.87392618]
[1729604554226,1.88492521,66883.0,66882.0,6.86714104]
[1729604554639,1.82511921,66883.0,66882.0,6.86714104]
[1729604554864,1.73541021,66883.0,66882.0,6.86714104]
[1729604555515,1.73541021,66883.0,66882.0,7.36714104]
[1729604555731,1.70550721,66883.0,66882.0,7.36714104]
[1729604555952,1.58689521,66883.0,66882.0,7.38014104]
[1729604556167,1.58689521,66883.0,66882.0,2.96673104]
[1729604556376,1.58689521,66883.0,66882.0,2.13473104]
[1729604556581,1.58589521,66883.0,66882.0,2.11973104]
[1729604556781,1.46628321,66883.0,66882.0,3.5975702]
[1729604556989,1.43738021,66883.0,66882.0,3.6085702]
[1729604557319,1.43738021,66883.0,66882.0,3.6105702]
[1729604557552,1.40747721,66883.0,66882.0,3.6105702]
[1729604558062,1.28786521,66883.0,66882.0,3.6105702]
[1729604558480,1.28786521,66883.0,66882.0,3.6567082]
[1729604558694,0.84715621,66883.0,66882.0,3.5975702]
[1729604558909,0.78735021,66883.0,66882.0,3.5975702]
[1729604559127,0.78835021,66883.0,66882.0,3.6105702]
[1729604559601,0.76335021,66883.0,66882.0,4.83339014]
[1729604559834,0.61385021,66883.0,66882.0,4.87425063]
[1729604560060,0.61485021,66883.0,66882.0,4.89717864]
[1729604560755,0.49525621,66883.0,66882.0,4.89717864]
[1729604560965,0.49525621,66883.0,66882.0,4.88894978]
[1729604560966,0.44984492,66883.0,66882.0,4.88894978]
[1729604561180,0.44984492,66883.0,66882.0,4.96352239]
[1729604561613,0.41995092,66883.0,66882.0,4.89717864]
[1729604561838,0.19231375,66883.0,66882.0,4.96352081]
[1729604562046,0.19231375,66883.0,66882.0,5.03352081]
[1729604562265,0.19131375,66883.0,66882.0,5.02052081]
[1729604562498,0.19131375,66883.0,66882.0,4.96617864]
[1729604562727,0.07173775,66883.0,66882.0,4.97521189]
[1729604562961,0.08,66920.0,66901.0,0.416474]
[1729604563187,0.001694,66935.0,66901.0,0.416474]
[1729604563188,0.2072552,66902.0,66901.0,6.44172778]
[1729604563419,0.001694,66935.0,66908.0,1.046378]
[1729604563420,0.199994,66935.0,66908.0,1.046378]
[1729604563638,0.1639887,66923.0,66922.0,0.416427]
[1729604563850,0.1042187,66923.0,66922.0,4.20940156]
[1729604564100,0.280794,66935.0,66929.0,0.164412]
[1729604564310,0.280794,66935.0,66929.0,0.67420883]
[1729604564527,0.280794,66935.0,66929.0,0.67620883]
[1729604565648,0.280794,66935.0,66929.0,0.92620883]
[1729604567386,0.280794,66935.0,66929.0,0.97259441]
[1729604567598,0.280794,66935.0,66929.0,0.98459441]
[1729604568901,0.2237587,66934.0,66929.0,0.73459441]
[1729604569138,0.280794,66935.0,66929.0,0.42737115]
[1729604570040,0.280794,66935.0,66929.0,0.41537115]
[1729604570533,0.280794,66935.0,66929.0,0.42737115]
[1729604570958,0.280794,66935.0,66929.0,0.41537115]
[1729604571397,0.280794,66935.0,66929.0,0.42737115]
[1729604571610,0.081152,66930.0,66929.0,0.31537115]
[1729604571841,0.264352,66930.0,66929.0,0.31037115]
[1729604572063,0.264352,66930.0,66929.0,0.31261144]
[1729604572289,0.264352,66930.0,66929.0,0.31761144]
[1729604573186,0.264352,66930.0,66929.0,0.31261144]
[1729604573398,0.264352,66930.0,66929.0,0.27192344]
[1729604573847,0.264352,66930.0,66925.0,0.298841]
[1729604574068,0.2643,66929.0,66927.0,0.149416]
[1729604574286,0.1855,66927.0,66926.0,0.14895915]
[1729604574496,0.1855,66925.0,66921.0,0.298855]
[1729604574722,0.1855,66925.0,66924.0,0.149422]
[1729604575613,0.1855,66925.0,66924.0,0.29838115]
[1729604575838,0.1855,66925.0,66924.0,0.3163694]
[1729604576057,0.187152,66930.0,66929.0,0.264412]
[1729604576272,0.187152,66930.0,66929.0,0.39837115]
[1729604576714,0.187152,66930.0,66929.0,0.40337115]
[1729604576987,0.187152,66930.0,66929.0,0.41337115]
[1729604577205,0.001694,66935.0,66929.0,0.41337115]
[1729604577206,1e-06,66933.0,66932.0,0.78608036]
[1729604577428,1e-06,66933.0,66932.0,0.72064754]
[1729604577636,1e-06,66933.0,66932.0,0.72264754]
[1729604579139,1e-06,66933.0,66932.0,0.73464754]
[1729604581479,1e-06,66933.0,66932.0,0.72264754]
[1729604581944,1e-06,66933.0,66932.0,0.73464754]
[1729604582202,1e-06,66933.0,66932.0,0.68820183]
[1729604582430,1e-06,66933.0,66932.0,0.67620183]
[1729604582944,1e-06,66933.0,66932.0,0.68820183]
[1729604583175,0.197501,66933.0,66932.0,0.68820183]
[1729604583638,0.18689036,66933.0,66932.0,0.68820183]
[1729604583886,0.18689036,66933.0,66932.0,0.73460006]
[1729604584114,0.18689036,66933.0,66932.0,0.68820183]
[1729604584367,0.001694,66940.0,66939.0,0.017]
[1729604584611,0.001694,66940.0,66939.0,0.80230937]
[1729604584847,0.001694,66940.0,66939.0,0.84572017]
[1729604585332,0.001694,66940.0,66939.0,1.10655785]
[1729604586293,1e-06,66940.0,66939.0,1.10655785]
[1729604586539,1e-06,66940.0,66939.0,1.89255785]
[1729604586757,0.0758133,66956.0,66955.0,0.52719168]
[1729604586975,0.0758133,66956.0,66955.0,1.06012514]
[1729604587205,0.0758133,66956.0,66955.0,0.79728746]
[1729604587651,0.0758133,66956.0,66955.0,0.79928746]
[1729604587879,0.0758133,66956.0,66955.0,0.79728746]
[1729604588103,0.0758133,66956.0,66955.0,0.79952696]
[1729604588320,0.0758133,66956.0,66955.0,0.78952696]
[1729604588780,0.0758133,66956.0,66955.0,0.79952696]
[1729604589198,0.0758133,66956.0,66955.0,0.79452696]
[1729604589847,0.0758133,66956.0,66955.0,0.79952696]
[1729604590326,0.0758133,66956.0,66955.0,0.78952696]
[1729604590553,0.0758133,66956.0,66955.0,0.79952696]
[1729604590776,0.0758133,66956.0,66955.0,0.81152696]
[1729604591175,0.0758133,66956.0,66955.0,0.80152696]
[1729604591399,0.0758133,66956.0,66955.0,0.81152696]
[1729604591602,0.0758133,66956.0,66955.0,1.07236464]
[1729604592655,0.0758133,66956.0,66955.0,1.06036464]
[1729604593262,0.0758133,66956.0,66955.0,1.07236464]
[1729604593974,0.0758133,66956.0,66955.0,1.06036464]
[1729604594456,0.0774633,66956.0,66955.0,1.11878899]
[1729604595078,0.0774633,66956.0,66955.0,1.07236464]
[1729604595531,0.0774633,66956.0,66955.0,0.69652696]
[1729604595748,0.0774633,66956.0,66955.0,0.92652696]
[1729604596254,0.0774633,66956.0,66955.0,0.91952696]
[1729604596666,0.0774633,66956.0,66955.0,1.03152696]
[1729604596874,0.00165,66956.0,66955.0,1.08795728]
[1729604597080,0.00165,66956.0,66955.0,1.07595728]
[1729604597690,0.00165,66956.0,66955.0,1.08795728]
[1729604598689,0.00165,66956.0,66955.0,1.07795728]
[1729604598884,0.00147018,66956.0,66955.0,1.08795728]
[1729604599630,0.00147018,66956.0,66955.0,1.07595728]
[1729604600055,0.00147018,66956.0,66955.0,1.08795728]
[1729604600399,0.00147018,66956.0,66955.0,1.2592894]
[1729604600602,0.00147018,66956.0,66955.0,1.2472894]
[1729604601007,0.00147018,66956.0,66955.0,1.21285908]
[1729604601217,0.00147018,66956.0,66955.0,1.25927821]
[1729604603487,0.00147018,66956.0,66955.0,1.24726311]
[1729604603949,0.00147018,66956.0,66955.0,1.25926311]
[1729604604537,0.00147018,66956.0,66955.0,1.21285908]
[1729604606593,0.00147018,66956.0,66955.0,1.19785908]
[1729604606834,0.00147018,66956.0,66955.0,0.92652696]
[1729604607686,0.00147018,66956.0,66955.0,0.91952696]
[1729604608093,0.00147018,66956.0,66955.0,1.03152696]
[1729604608721,0.00147018,66956.0,66955.0,1.01952696]
[1729604608955,0.00147018,66956.0,66955.0,1.01452696]
[1729604609348,0.00147018,66956.0,66955.0,1.06100111]
[1729604609559,0.00147018,66956.0,66955.0,1.01452696]
[1729604610382,0.00147018,66956.0,66955.0,0.86556781]
[1729604610383,0.08027018,66956.0,66955.0,0.86556781]
[1729604610597,0.26747018,66956.0,66955.0,0.61621381]
[1729604611231,0.26747018,66956.0,66955.0,0.62821381]
[1729604611632,0.26747018,66956.0,66955.0,0.77756781]
[1729604611867,0.26747018,66956.0,66955.0,0.76556781]
[1729604612070,0.26747018,66956.0,66955.0,0.61621381]
[1729604612439,0.26747018,66956.0,66955.0,0.62821381]
[1729604612924,0.5881533,66956.0,66955.0,0.62821381]
[1729604613188,0.29047018,66956.0,66955.0,0.41621381]
[1729604613543,0.26747018,66956.0,66955.0,0.41621381]
[1729604614125,0.6111533,66956.0,66955.0,0.41621381]
[1729604614563,0.4618023,66956.0,66955.0,0.1541395]
[1729604614767,0.29047018,66956.0,66955.0,0.1541395]
[1729604615090,0.26747018,66956.0,66955.0,0.1541395]
[1729604615536,0.26747018,66956.0,66955.0,0.1651395]
[1729604616502,0.26747018,66956.0,66955.0,0.3144935]
[1729604616702,0.26747018,66956.0,66955.0,0.3034935]
[1729604616927,0.26747018,66956.0,66955.0,0.1541395]
[1729604617129,0.26747018,66956.0,66955.0,0.3034935]
[1729604618007,0.26747018,66956.0,66955.0,0.1601395]
[1729604618217,0.26747018,66956.0,66955.0,0.3094935]
[1729604618862,0.26747018,66956.0,66955.0,0.1601395]
[1729604619699,0.26747018,66956.0,66955.0,0.1541395]
[1729604620367,0.26747018,66956.0,66955.0,0.1651395]
[1729604620842,0.26747018,66956.0,66955.0,0.1541395]
[1729604621295,0.26747018,66956.0,66955.0,0.1631395]
[1729604623331,0.26747018,66956.0,66955.0,0.1541395]
[1729604623332,0.41682118,66956.0,66955.0,0.1541395]
[1729604623598,0.41682118,66956.0,66955.0,0.16337946]
[1729604623836,0.41682118,66956.0,66950.0,0.02336901]
[1729604623837,0.459962,66951.0,66950.0,0.02336901]
[1729604624086,0.459962,66951.0,66944.0,0.2237587]
[1729604624087,0.149376,66945.0,66944.0,0.2237587]
[1729604624340,0.61550812,66945.0,66944.0,0.2237587]
[1729604624592,0.172385,66941.0,66940.0,0.000826]
[1729604624853,0.78684924,66941.0,66940.0,0.000826]
[1729604625068,0.61551712,66941.0,66940.0,0.000826]
[1729604626477,0.005,66939.0,66935.0,0.02338044]
[1729604626813,0.78642339,66941.0,66932.0,0.000825]
[1729604626814,0.015,66933.0,66932.0,0.000825]
[1729604627015,0.34374812,66927.0,66926.0,0.2014371]
[1729604627218,0.53744812,66927.0,66926.0,0.2014371]
[1729604627434,0.149423,66924.0,66916.0,0.2237587]
[1729604627642,0.32138215,66924.0,66916.0,0.2237587]
[1729604628725,0.32138215,66924.0,66909.0,0.2237587]
[1729604628955,0.32138215,66924.0,66902.0,0.5227007]
[1729604628956,0.1937,66908.0,66902.0,0.2237587]
[1729604629232,0.17133212,66903.0,66902.0,0.2237587]
[1729604629678,0.17133212,66903.0,66893.0,0.37797431]
[1729604629903,0.59192212,66894.0,66893.0,0.37797431]
[1729604630126,0.44243212,66894.0,66893.0,0.37797431]
[1729604630836,0.44243212,66894.0,66893.0,0.40136983]
[1729604633044,0.44243212,66894.0,66893.0,0.40436983]
[1729604633545,0.59192212,66894.0,66893.0,0.40661183]
[1729604633800,0.59192212,66894.0,66893.0,0.02639552]
[1729604633801,0.65537856,66894.0,66893.0,0.02639552]
[1729604634041,0.65537856,66894.0,66893.0,0.003]
[1729604634519,0.48404644,66894.0,66893.0,0.003]
[1729604634747,0.023,66893.0,66889.0,0.0022423]
[1729604635011,0.172493,66893.0,66889.0,0.0022423]
[1729604635255,0.023,66893.0,66889.0,0.0022423]
[1729604635734,0.023,66893.0,66889.0,0.00145913]
[1729604635990,0.1937,66894.0,66890.0,0.298998]
[1729604636241,0.001,66893.0,66892.0,0.149493]
[1729604636746,0.001,66893.0,66891.0,0.149496]
[1729604636990,0.001,66893.0,66890.0,0.149497]
[1729604637711,0.17133212,66891.0,66890.0,0.149497]
[1729604638719,0.17133212,66891.0,66890.0,0.155497]
[1729604639396,0.17133212,66891.0,66890.0,0.149497]
[1729604639648,0.17133212,66891.0,66890.0,0.155497]
[1729604639926,0.17133212,66891.0,66890.0,0.006]
[1729604640181,0.32082812,66891.0,66890.0,0.006]
[1729604640703,0.32082812,66891.0,66890.0,0.006826]
[1729604640910,0.17133212,66891.0,66890.0,0.006826]
[1729604641148,0.32082812,66891.0,66890.0,0.006826]
[1729604641879,0.17133212,66891.0,66890.0,0.006826]
[1729604642088,0.32082812,66891.0,66890.0,0.000826]
[1729604642306,0.17133212,66891.0,66890.0,0.000826]
[1729604642517,0.32182812,66891.0,66890.0,0.007826]
[1729604642727,0.17233212,66891.0,66890.0,0.007826]
[1729604642940,0.32182812,66891.0,66890.0,0.007826]
[1729604643162,0.32082812,66891.0,66890.0,0.000826]
[1729604643377,0.32082812,66891.0,66890.0,0.00060066]
[1729604643592,0.32082812,66891.0,66890.0,0.00160066]
[1729604643808,0.17133212,66891.0,66890.0,0.00160066]
[1729604644647,0.32082812,66891.0,66890.0,0.00160066]
[1729604644870,0.492684,66894.0,66890.0,0.00160066]
[1729604644871,0.1937,66894.0,66890.0,0.00160066]
[1729604645093,0.17133212,66891.0,66890.0,0.00160066]
[1729604646198,0.17133212,66891.0,66890.0,0.00060066]
[1729604646427,0.36658241,66891.0,66890.0,0.00060066]
[1729604646650,0.51554156,66891.0,66890.0,0.00060066]
[1729604647363,0.51554156,66891.0,66882.0,0.000825]
[1729604647364,0.71997824,66883.0,66882.0,0.000825]
[1729604647584,0.71997824,66883.0,66876.0,0.02339884]
[1729604647585,0.154528,66877.0,66876.0,0.02339884]
[1729604647798,0.149534,66874.0,66872.0,0.2237587]
[1729604648018,0.149534,66874.0,66865.0,0.000846]
[1729604648019,0.172534,66874.0,66865.0,0.000846]
[1729604648252,0.172534,66874.0,66865.0,0.00308912]
[1729604648499,0.370771,66874.0,66865.0,0.00308912]
[1729604648756,0.449371,66874.0,66865.0,0.00308912]
[1729604648994,0.46616912,66874.0,66865.0,0.00308912]
[1729604649219,0.36456912,66874.0,66871.0,0.149541]
[1729604649450,0.17146912,66874.0,66871.0,0.299083]
[1729604649723,0.000137,66874.0,66873.0,0.150383]
[1729604650163,0.000137,66874.0,66873.0,0.000846]
[1729604650386,0.000137,66874.0,66873.0,0.150383]
[1729604651282,0.001137,66874.0,66873.0,0.160383]
[1729604652386,0.002137,66874.0,66873.0,0.42134215]
[1729604652608,0.002137,66874.0,66873.0,0.40934215]
[1729604652827,0.003137,66874.0,66873.0,0.42334215]
[1729604653256,0.001137,66874.0,66873.0,0.40934215]
[1729604653511,0.001137,66874.0,66873.0,0.41334215]
[1729604653719,0.000137,66874.0,66873.0,0.39934215]
[1729604653924,0.000137,66874.0,66873.0,0.40634215]
[1729604654135,0.000137,66874.0,66873.0,0.42034215]
[1729604654136,0.001137,66874.0,66873.0,0.42034215]
[1729604654574,0.001137,66874.0,66873.0,0.41334215]
[1729604654809,0.001137,66874.0,66873.0,0.264383]
[1729604655022,0.18971603,66874.0,66873.0,0.014846]
[1729604655264,0.17246912,66874.0,66873.0,0.014846]
[1729604655482,0.17246912,66874.0,66873.0,0.025846]
[1729604655716,0.32200312,66874.0,66873.0,0.025846]
[1729604656143,0.35887982,66874.0,66873.0,0.025846]
[1729604656970,0.35787982,66874.0,66873.0,0.011846]
[1729604657448,0.0150137,66874.0,66873.0,0.161383]
[1729604657702,0.0150137,66874.0,66873.0,0.25262544]
[1729604657912,0.001137,66874.0,66873.0,0.25262544]
[1729604658121,0.002137,66874.0,66873.0,0.25262544]
[1729604658541,0.001137,66874.0,66873.0,0.25262544]
[1729604658775,0.17146912,66874.0,66873.0,0.15262544]
[1729604658979,0.32200312,66874.0,66873.0,0.02208844]
[1729604659215,0.32100312,66874.0,66873.0,0.01008844]
[1729604659430,0.34500312,66874.0,66873.0,0.02208844]
[1729604659645,0.34500312,66874.0,66873.0,0.01508844]
[1729604659924,0.34500312,66874.0,66873.0,0.00308844]
[1729604659925,0.34400312,66874.0,66873.0,0.00308844]
[1729604660157,0.34400312,66874.0,66873.0,0.00808844]
[1729604660364,0.34400312,66874.0,66873.0,0.00308844]
[1729604660789,0.77804348,66874.0,66873.0,0.000846]
[1729604661233,0.67446227,66874.0,66873.0,0.000846]
[1729604661637,0.67446227,66874.0,66873.0,0.009846]
[1729604662277,0.67446227,66874.0,66873.0,0.000846]
[1729604662488,0.67646227,66874.0,66873.0,0.000846]
[1729604662700,0.67546227,66874.0,66873.0,0.000846]
[1729604662911,0.8173905,66874.0,66873.0,0.002846]
[1729604663123,0.68046227,66874.0,66873.0,0.002846]
[1729604663339,0.67946227,66874.0,66873.0,0.000846]
[1729604663989,0.68946227,66874.0,66873.0,0.000846]
[1729604664207,0.68946227,66874.0,66865.0,0.000846]
[1729604664208,0.005,66867.0,66866.0,0.2237587]
[1729604664437,0.50784127,66867.0,66866.0,0.2237587]
[1729604664642,0.50784127,66867.0,66865.0,0.000846]
[1729604664643,0.385789,66866.0,66865.0,0.000846]
[1729604664859,0.61164815,66866.0,66865.0,0.000846]
[1729604666239,0.007137,66866.0,66865.0,0.001846]
[1729604666485,0.001137,66866.0,66865.0,0.001846]
[1729604666672,0.003137,66866.0,66865.0,0.151401]
[1729604666923,0.002137,66866.0,66865.0,0.150401]
[1729604667350,0.002137,66866.0,66865.0,0.17380592]
[1729604668191,0.002137,66866.0,66865.0,0.18080592]
[1729604668192,0.003137,66866.0,66865.0,0.18080592]
[1729604668620,0.000137,66866.0,66865.0,0.17380592]
[1729604668799,0.001137,66866.0,66865.0,0.18680592]
[1729604669073,0.001137,66866.0,66865.0,0.18780592]
[1729604669074,0.009137,66866.0,66865.0,0.18780592]
[1729604669308,0.009137,66866.0,66865.0,0.17480592]
[1729604669558,0.002137,66866.0,66865.0,0.18680592]
[1729604669804,0.001137,66866.0,66865.0,0.17380592]
[1729604670013,0.002137,66866.0,66865.0,0.18480592]
[1729604671561,0.002137,66866.0,66865.0,0.33376507]
[1729604671999,0.000137,66866.0,66865.0,0.42276507]
[1729604672240,0.000137,66866.0,66865.0,0.70406507]
[1729604672447,0.000137,66866.0,66865.0,0.76358166]
[1729604672448,0.001137,66866.0,66865.0,0.76358166]
[1729604672747,0.001137,66866.0,66865.0,0.76158166]
[1729604672973,0.002137,66866.0,66865.0,0.77258166]
[1729604673222,0.000137,66866.0,66865.0,0.75058166]
[1729604673667,0.001137,66866.0,66865.0,0.76358166]
[1729604674124,0.002137,66866.0,66865.0,0.77458166]
[1729604675192,0.002137,66866.0,66865.0,0.76458166]
[1729604675626,0.002137,66866.0,66865.0,0.75958166]
[1729604675842,0.002137,66866.0,66865.0,0.34432251]
[1729604676069,0.002137,66866.0,66865.0,0.29780592]
[1729604676301,0.002137,66866.0,66865.0,0.19780592]
[1729604676534,0.002137,66866.0,66865.0,0.20521641]
[1729604677404,0.001137,66866.0,66865.0,0.19421641]
[1729604678255,0.000137,66866.0,66865.0,0.19021641]
[1729604678463,0.000137,66866.0,66865.0,0.20421641]
[1729604681147,0.000137,66866.0,66865.0,0.30421641]
[1729604682721,0.000137,66866.0,66865.0,0.20421641]
[1729604684942,0.000137,66866.0,66865.0,0.45317556]
[1729604685833,0.000137,66866.0,66865.0,0.43917556]
[1729604686040,0.000137,66866.0,66865.0,0.45317556]
[1729604687107,0.000137,66866.0,66865.0,0.44417556]
[1729604687519,0.000137,66866.0,66865.0,0.45517556]
[1729604688591,0.000137,66866.0,66865.0,0.30621641]
[1729604692082,0.000137,66866.0,66865.0,0.20621641]
[1729604692289,0.000137,66866.0,66865.0,0.05666141]
[1729604692715,0.149689,66866.0,66865.0,0.05666141]
[1729604693219,0.59734815,66866.0,66865.0,0.05666141]
[1729604693451,0.59734815,66866.0,66856.0,0.000846]
[1729604693452,0.182572,66857.0,66856.0,0.000846]
[1729604693673,0.59773115,66857.0,66856.0,0.000846]
[1729604693897,0.189577,66855.0,66854.0,0.18478411]
[1729604694141,0.189577,66855.0,66844.0,0.2237587]
[1729604694142,0.005,66851.0,66844.0,0.2237587]
[1729604694370,0.43364626,66845.0,66844.0,0.2237587]
[1729604694546,0.149611,66840.0,66838.0,0.000825]
[1729604694786,0.26104726,66840.0,66838.0,0.000825]
[1729604695505,0.58761741,66840.0,66838.0,0.000825]
[1729604695730,0.73657656,66840.0,66838.0,0.000825]
[1729604696192,0.73657656,66840.0,66839.0,0.003826]
[1729604696405,0.74657656,66840.0,66839.0,0.003826]
[1729604697139,0.74657656,66840.0,66839.0,0.008826]
[1729604697384,0.59761741,66840.0,66839.0,0.003826]
[1729604697623,0.023,66842.0,66839.0,0.003826]
[1729604697869,0.005,66843.0,66839.0,0.004826]
[1729604697870,0.014,66840.0,66839.0,0.004826]
[1729604698130,0.023,66843.0,66840.0,0.149611]
[1729604698347,0.004,66840.0,66839.0,0.17385495]
[1729604698552,0.009,66840.0,66839.0,0.17385495]
[1729604698964,0.009,66840.0,66839.0,0.17485495]
[1729604699171,0.004,66840.0,66839.0,0.17485495]
[1729604699624,0.004,66840.0,66839.0,0.5475728]
[1729604699814,0.004,66840.0,66839.0,0.4238141]
[1729604700239,0.2237587,66857.0,66839.0,0.4238141]
[1729604700240,0.005,66856.0,66839.0,0.2732011]
[1729604700487,0.2237587,66857.0,66845.0,0.299199]
[1729604700702,0.2237587,66867.0,66850.0,0.1]
[1729604700929,0.2237587,66867.0,66848.0,0.1]
[1729604700930,0.2237587,66860.0,66851.0,0.14895915]